fUSD/lending_fUSD_20250208
["ID","MTS","AMOUNT","RATE_DAILY","PERIOD"]
[352294195,1739030707646,-500.0,0.00010406,2]
[352294196,1739030707670,-793.08,0.00010406,2]
[352294197,1739030707695,-500.0,0.00010406,2]
[352294198,1739030707718,-525.62,0.00010406,2]
[352294199,1739030707745,-500.0,0.00010406,2]
[352294200,1739030707769,-481.4,0.00010406,2]
[352294201,1739030707793,-500.0,0.00010406,2]
[352294202,1739030707817,-854.33,0.00010406,2]
[352294203,1739030707841,-500.0,0.00010406,2]
[352294204,1739030707867,-1083.22,0.00010406,2]
[352294205,1739030707894,-917.36,0.00010406,2]
[352294206,1739030707918,-500.0,0.00010406,2]
[352294207,1739030707942,-883.82,0.00010406,2]
[352294208,1739030707969,-500.0,0.00010406,2]
[352294209,1739030707995,-500.0,0.00010406,2]
[352294210,1739030708019,-782.16,0.00010406,2]
[352294211,1739030708043,-500.0,0.00010406,2]
[352294212,1739030708067,-500.0,0.00010406,2]
[352294213,1739030708091,-500.0,0.00010406,2]
[352294214,1739030708117,-500.0,0.00010406,2]
[352294215,1739030708142,-747.24,0.00010406,2]
[352294216,1739030708167,-674.19,0.00010406,2]
[352294217,1739030708191,-500.0,0.00010406,2]
[352294218,1739030708215,-741.83,0.00010406,2]
[352294219,1739030708241,-500.0,0.00010406,2]
[352294220,1739030708268,-1399.18,0.00010406,2]
[352294221,1739030708293,-1111.43,0.00010406,2]
[352294222,1739030708319,-500.0,0.00010406,2]
[352294223,1739030708344,-500.0,0.00010406,2]
[352294224,1739030708370,-725.89,0.00010406,2]
[352294225,1739030708395,-500.0,0.00010406,2]
[352294226,1739030708419,-500.0,0.00010406,2]
[352294227,1739030708444,-500.0,0.00010406,2]
[352294228,1739030708468,-500.0,0.00010406,2]
[352294229,1739030708495,-940.22,0.00010407,2]
[352294230,1739030708520,-4259.06,0.00010407,2]
[352294231,1739030708545,-1683.47,0.00010407,2]
[352294232,1739030708569,-1458.26,0.00010407,2]
[352294233,1739030708593,-1970.13,0.00010407,2]
[352294234,1739030708617,-1067.67,0.00010407,2]
[352294235,1739030708641,-2722.91,0.00010407,2]
[352294236,1739030708666,-500.0,0.00010407,2]
[352294237,1739030708691,-616.17,0.00010407,2]
[352294238,1739030708715,-1867.62,0.00010407,2]
[352294239,1739030708741,-1725.38,0.00010407,2]
[352294240,1739030708766,-1462.59,0.00010407,2]
[352294241,1739030708790,-953.74,0.00010407,2]
[352294242,1739030708815,-500.0,0.00010407,2]
[352294243,1739030708839,-948.04,0.00010407,2]
[352294244,1739030708864,-863.45,0.00010407,2]
[352294245,1739030708888,-780.01,0.00010407,2]
[352294246,1739030708912,-1032.58,0.00010407,2]
[352294247,1739030708936,-1881.58,0.00010407,2]
[352294248,1739030708960,-868.23,0.00010407,2]
[352294249,1739030708984,-500.0,0.00010407,2]
[352294250,1739030709008,-2263.5,0.00010407,2]
[352294251,1739030709032,-610.05,0.00010407,2]
[352294252,1739030709057,-564.11,0.00010407,2]
[352294253,1739030709082,-1253.82,0.00010407,2]
[352294254,1739030709108,-1787.14,0.00010407,2]
[352294255,1739030709133,-178.02094351,0.00010408,2]
[352294256,1739030709158,-500.0,0.00010408,2]
[352294257,1739030709182,-500.0,0.00010408,2]
[352294258,1739030709207,-500.0,0.00010408,2]
[352294259,1739030709231,-500.0,0.00010408,2]
[352294260,1739030709262,-500.0,0.00010408,2]
[352294261,1739030709287,-500.0,0.00010408,2]
[352294262,1739030709312,-186.33526327,0.00010408,2]
[352294263,1739030709337,-500.0,0.00010408,2]
[352294264,1739030709361,-500.0,0.00010408,2]
[352294265,1739030709385,-500.0,0.00010408,2]
[352294266,1739030709409,-500.0,0.00010408,2]
[352294267,1739030709435,-838.57,0.00010408,2]
[352294268,1739030709463,-500.0,0.00010408,2]
[352294269,1739030709490,-500.0,0.00010408,2]
[352294270,1739030709514,-562.8,0.00010408,2]
[352294271,1739030709538,-500.0,0.00010408,2]
[352294272,1739030709561,-500.0,0.00010408,2]
[352294273,1739030709584,-500.0,0.00010408,2]
[352294274,1739030709608,-500.0,0.00010408,2]
[352294275,1739030709632,-500.0,0.00010408,2]
[352294276,1739030709656,-583.94,0.00010408,2]
[352294277,1739030709680,-500.0,0.00010408,2]
[352294278,1739030709704,-722.86,0.00010408,2]
[352294279,1739030709729,-500.0,0.00010408,2]
[352294280,1739030709755,-686.51,0.00010408,2]
[352294281,1739030709780,-500.0,0.00010408,2]
[352294282,1739030709804,-500.0,0.00010408,2]
[352294283,1739030709827,-500.0,0.00010408,2]
[352294284,1739030709850,-500.0,0.00010408,2]
[352294285,1739030709873,-509.52,0.00010408,2]
[352294286,1739030709897,-500.0,0.00010408,2]
[352294287,1739030709921,-500.0,0.00010408,2]
[352294288,1739030709945,-692.06,0.00010408,2]
[352294289,1739030709968,-500.0,0.00010408,2]
[352294290,1739030709993,-500.0,0.00010408,2]
[352294291,1739030710017,-541.71,0.00010408,2]
[352294292,1739030710041,-500.0,0.00010408,2]
[352294293,1739030710065,-500.0,0.00010408,2]
[352294294,1739030710090,-746.36,0.00010408,2]
[352294295,1739030710114,-599.48,0.00010408,2]
[352294296,1739030710138,-500.0,0.00010408,2]
[352294297,1739030710162,-753.64,0.00010408,2]
[352294298,1739030710187,-500.0,0.00010408,2]
[352294299,1739030710212,-692.88,0.00010408,2]
[352294300,1739030710238,-694.63,0.00010408,2]
[352294301,1739030710264,-604.54,0.00010408,2]
[352294302,1739030710289,-563.79,0.00010408,2]
[352294303,1739030710314,-500.0,0.00010408,2]
[352294304,1739030710507,-500.0,0.00010408,2]
[352294305,1739030710532,-500.0,0.00010408,2]
[352294306,1739030710557,-500.0,0.00010408,2]
[352294307,1739030710582,-1096.01,0.00010408,2]
[352294308,1739030710607,-500.0,0.00010408,2]
[352294309,1739030710631,-500.0,0.00010408,2]
[352294310,1739030710657,-500.0,0.00010408,2]
[352294311,1739030710681,-500.0,0.00010408,2]
[352294312,1739030710705,-500.0,0.00010408,2]
[352294313,1739030710729,-500.0,0.00010408,2]
[352294314,1739030710757,-500.0,0.00010408,2]
[352294315,1739030710781,-500.0,0.00010408,2]
[352294316,1739030710807,-500.0,0.00010408,2]
[352294317,1739030710833,-1040.0,0.00010408,2]
[352294318,1739030710859,-500.0,0.00010408,2]
[352294319,1739030710886,-804.63,0.00010408,2]
[352294320,1739030710911,-828.55,0.00010408,2]
[352294321,1739030710937,-500.0,0.00010408,2]
[352294322,1739030710962,-500.0,0.00010408,2]
[352294323,1739030710987,-500.0,0.00010408,2]
[352294324,1739030711011,-500.0,0.00010408,2]
[352294325,1739030711035,-500.0,0.00010408,2]
[352294326,1739030711059,-500.0,0.00010408,2]
[352294327,1739030711084,-414.34881375,0.00010408,2]
[352294328,1739030711109,-500.0,0.00010408,2]
[352294329,1739030711133,-500.0,0.00010408,2]
[352294330,1739030711158,-500.0,0.00010408,2]
[352294331,1739030711183,-500.0,0.00010408,2]
[352294332,1739030711208,-778.32,0.00010408,2]
[352294333,1739030711234,-500.0,0.00010408,2]
[352294334,1739030711259,-500.0,0.00010408,2]
[352294335,1739030711290,-500.0,0.00010408,2]
[352294336,1739030711316,-847.29,0.00010408,2]
[352294337,1739030711340,-500.0,0.00010408,2]
[352294338,1739030711366,-500.0,0.00010408,2]
[352294339,1739030711389,-500.0,0.00010408,2]
[352294340,1739030711414,-500.0,0.00010408,2]
[352294341,1739030711439,-768.92,0.00010408,2]
[352294342,1739030711464,-556.69,0.00010408,2]
[352294343,1739030711490,-5847.25,0.00010408,2]
[352294344,1739030711515,-500.0,0.00010408,2]
[352294345,1739030711538,-588.19,0.00010408,2]
[352294346,1739030711563,-795.93,0.00010408,2]
[352294347,1739030711587,-1153.61,0.00010408,2]
[352294348,1739030711612,-1203.38,0.00010408,2]
[352294349,1739030711637,-526.0,0.00010408,2]
[352294350,1739030711661,-1061.72,0.00010408,2]
[352294351,1739030711685,-500.0,0.00010408,2]
[352294352,1739030711710,-500.0,0.00010408,2]
[352294353,1739030711739,-500.0,0.00010408,2]
[352294354,1739030711763,-500.0,0.00010408,2]
[352294355,1739030711788,-500.0,0.00010408,2]
[352294356,1739030711814,-895.87,0.00010408,2]
[352294357,1739030711839,-503.13,0.00010408,2]
[352294358,1739030711866,-500.0,0.00010408,2]
[352294359,1739030711891,-500.0,0.00010408,2]
[352294360,1739030711918,-500.0,0.00010408,2]
[352294361,1739030711943,-500.0,0.00010408,2]
[352294362,1739030711968,-788.36,0.00010408,2]
[352294363,1739030711993,-500.0,0.00010408,2]
[352294364,1739030712019,-2386.43,0.00010408,2]
[352294365,1739030712044,-500.0,0.00010408,2]
[352294366,1739030712070,-500.0,0.00010408,2]
[352294367,1739030712096,-1921.1,0.00010408,2]
[352294368,1739030712120,-500.0,0.00010408,2]
[352294369,1739030712145,-500.0,0.00010408,2]
[352294370,1739030712170,-500.0,0.00010408,2]
[352294371,1739030712196,-665.38,0.00010408,2]
[352294372,1739030712222,-405.34,0.00010408,2]
[352294373,1739030712249,-545.63,0.00010408,2]
[352294374,1739030712277,-500.0,0.00010408,2]
[352294375,1739030712306,-1335.82,0.00010408,2]
[352294376,1739030712337,-914.9,0.00010408,2]
[352294377,1739030712365,-500.0,0.00010408,2]
[352294378,1739030712390,-500.0,0.00010408,2]
[352294379,1739030712414,-500.0,0.00010408,2]
[352294380,1739030712447,-2414.31,0.00010408,2]
[352294381,1739030712472,-1611.04,0.00010408,2]
[352294382,1739030712499,-709.67,0.00010408,2]
[352294383,1739030712523,-878.56,0.00010408,2]
[352294384,1739030712548,-500.0,0.00010408,2]
[352294385,1739030712600,-1000.0,0.00010408,2]
[352294386,1739030712652,-730.67,0.00010408,2]
[352294387,1739030712705,-500.0,0.00010408,2]
[352294388,1739030712756,-1689.57,0.00010408,2]
[352294389,1739030712808,-789.69,0.00010408,2]
[352294390,1739030712857,-1696.13,0.00010408,2]
[352294391,1739030712912,-854.58,0.00010408,2]
[352294392,1739030712961,-500.0,0.00010408,2]
[352294393,1739030713014,-1675.34,0.00010408,2]
[352294394,1739030713065,-500.0,0.00010408,2]
[352294395,1739030713117,-500.0,0.00010408,2]
[352294396,1739030713167,-500.0,0.00010408,2]
[352294397,1739030713219,-766.51,0.00010408,2]
[352294398,1739030713270,-500.0,0.00010408,2]
[352294399,1739030713321,-6935.5,0.00010408,2]
[352294400,1739030713372,-710.54,0.00010408,2]
[352294401,1739030713424,-500.0,0.00010408,2]
[352294402,1739030713473,-625.94,0.00010408,2]
[352294403,1739030713524,-500.0,0.00010408,2]
[352294404,1739030713574,-612.24427192,0.00010408,2]
[352294405,1739030713627,-500.0,0.00010408,2]
[352294406,1739030713676,-681.43,0.00010408,2]
[352294407,1739030713725,-500.0,0.00010408,2]
[352294408,1739030713779,-500.0,0.00010408,2]
[352294409,1739030713829,-500.0,0.00010408,2]
[352294410,1739030713881,-500.0,0.00010408,2]
[352294411,1739030713931,-500.0,0.00010408,2]
[352294412,1739030713982,-500.0,0.00010408,2]
[352294413,1739030714032,-500.0,0.00010408,2]
[352294414,1739030714088,-500.0,0.00010408,2]
[352294415,1739030714136,-500.0,0.00010408,2]
[352294416,1739030714188,-500.0,0.00010408,2]
[352294417,1739030714238,-500.0,0.00010408,2]
[352294418,1739030714297,-851.04,0.00010408,2]
[352294419,1739030714349,-500.0,0.00010408,2]
[352294420,1739030714400,-500.0,0.00010408,2]
[352294421,1739030714450,-500.0,0.00010408,2]
[352294422,1739030714502,-500.0,0.00010408,2]
[352294423,1739030714560,-154.16148571,0.00010445,2]
[352294424,1739030714612,-175.7317417,0.00010445,2]
[352294425,1739030714666,-1064.27,0.00010459,2]
[352294426,1739030714715,-3179.00469,0.0001047,2]
[352294427,1739030714764,-2000.0,0.000105,3]
[352294428,1739030714826,-1800.0,0.000105,3]
[352294429,1739030714881,-3179.0047,0.000105,2]
[352294430,1739030714934,-931.24,0.00010542,2]
[352294431,1739030714984,-500.0,0.00010543,2]
[352294432,1739030715035,-624.73,0.00010543,2]
[352294433,1739030715085,-659.89,0.00010543,2]
[352294434,1739030715137,-755.96,0.00010543,2]
[352294435,1739030715187,-627.47,0.00010543,2]
[352294436,1739030715237,-500.0,0.00010543,2]
[352294437,1739030715286,-500.0,0.00010543,2]
[352294438,1739030715336,-500.0,0.00010543,2]
[352294439,1739030715386,-460.52967249,0.00010543,2]
[352294440,1739030715435,-500.0,0.00010543,2]
[352294441,1739030715489,-734.76,0.00010543,2]
[352294442,1739030715539,-857.9,0.00010543,2]
[352294443,1739030715591,-500.0,0.00010543,2]
[352294444,1739030715642,-1772.68,0.00010543,2]
[352294445,1739030715694,-681.34,0.00010543,2]
[352294446,1739030715743,-500.0,0.00010543,2]
[352294447,1739030715794,-904.38,0.00010543,2]
[352294448,1739030715844,-819.41,0.00010543,2]
[352294449,1739030715892,-453.2,0.00010543,2]
[352294450,1739030715944,-500.0,0.00010543,2]
[352294451,1739030715996,-1325.38,0.00010543,2]
[352294452,1739030716046,-1619.57,0.00010543,2]
[352294453,1739030716277,-500.0,0.00010543,2]
[352294454,1739030716362,-648.38,0.00010543,2]
[352294455,1739030716411,-500.0,0.00010543,2]
[352294456,1739030716460,-1309.61,0.00010543,2]
[352294457,1739030716511,-500.0,0.00010543,2]
[352294458,1739030716563,-500.0,0.00010543,2]
[352294459,1739030716613,-639.45,0.00010543,2]
[352294460,1739030716664,-1185.74,0.00010543,2]
[352294461,1739030716714,-500.0,0.00010543,2]
[352294462,1739030716766,-500.0,0.00010543,2]
[352294463,1739030716813,-1005.68,0.00010543,2]
[352294464,1739030716866,-586.78,0.00010543,2]
[352294465,1739030716917,-771.4,0.00010543,2]
[352294466,1739030716971,-500.0,0.00010543,2]
[352294467,1739030717022,-1328.4,0.00010543,2]
[352294468,1739030717074,-500.0,0.00010543,2]
[352294469,1739030717126,-1806.34,0.00010543,2]
[352294470,1739030717179,-728.81,0.00010543,2]
[352294471,1739030717230,-1714.33,0.00010543,2]
[352294472,1739030717286,-500.0,0.00010543,2]
[352294473,1739030717339,-500.0,0.00010543,2]
[352294474,1739030717393,-500.0,0.00010543,2]
[352294475,1739030717443,-500.0,0.00010543,2]
[352294476,1739030717496,-841.77,0.00010543,2]
[352294477,1739030717542,-500.0,0.00010543,2]
[352294478,1739030717593,-500.0,0.00010543,2]
[352294479,1739030717640,-752.57,0.00010543,2]
[352294480,1739030717690,-767.89,0.00010543,2]
[352294481,1739030717735,-500.0,0.00010543,2]
[352294482,1739030717785,-500.0,0.00010543,2]
[352294483,1739030717833,-500.0,0.00010543,2]
[352294484,1739030717883,-2042.07,0.00010543,2]
[352294485,1739030717932,-731.33,0.00010543,2]
[352294486,1739030717983,-500.0,0.00010543,2]
[352294487,1739030718030,-537.34,0.00010543,2]
[352294488,1739030718082,-500.0,0.00010543,2]
[352294489,1739030718127,-846.48,0.00010543,2]
[352294490,1739030718178,-820.2,0.00010543,2]
[352294491,1739030718226,-500.0,0.00010543,2]
[352294492,1739030718279,-643.96,0.00010543,2]
[352294493,1739030718329,-500.0,0.00010543,2]
[352294494,1739030718381,-500.0,0.00010543,2]
[352294495,1739030718428,-1468.75,0.00010543,2]
[352294496,1739030718481,-699.98,0.00010543,2]
[352294497,1739030718530,-500.0,0.00010543,2]
[352294498,1739030718582,-500.0,0.00010543,2]
[352294499,1739030718632,-500.0,0.00010543,2]
[352294500,1739030718685,-500.0,0.00010543,2]
[352294501,1739030718736,-500.0,0.00010543,2]
[352294502,1739030718792,-500.0,0.00010543,2]
[352294503,1739030718844,-500.0,0.00010543,2]
[352294504,1739030718900,-846.94,0.00010543,2]
[352294505,1739030718951,-500.0,0.00010543,2]
[352294506,1739030719006,-1687.88,0.00010543,2]
[352294507,1739030719057,-1944.52,0.00010543,2]
[352294508,1739030719116,-1396.003847,0.00010543,2]
[352294509,1739030719173,-867.92,0.00010543,2]
[352294510,1739030719233,-692.89,0.00010543,2]
[352294511,1739030719295,-1709.578401,0.00010543,2]
[352294512,1739030719352,-500.0,0.00010543,2]
[352294513,1739030719410,-1366.87,0.00010543,2]
[352294514,1739030719469,-500.0,0.00010543,2]
[352294515,1739030719530,-500.0,0.00010543,2]
[352294516,1739030719587,-500.0,0.00010543,2]
[352294517,1739030719643,-500.0,0.00010543,2]
[352294518,1739030719701,-793.08,0.00010543,2]
[352294519,1739030719757,-500.0,0.00010543,2]
[352294520,1739030719815,-525.62,0.00010543,2]
[352294521,1739030719869,-500.0,0.00010543,2]
[352294522,1739030719927,-500.0,0.00010543,2]
[352294523,1739030719979,-854.33,0.00010543,2]
[352294524,1739030720033,-1083.22,0.00010543,2]
[352294525,1739030720087,-917.36,0.00010543,2]
[352294526,1739030720139,-500.0,0.00010543,2]
[352294527,1739030720193,-883.82,0.00010543,2]
[352294528,1739030720245,-585.55,0.00010543,2]
[352294529,1739030720300,-500.0,0.00010543,2]
[352294530,1739030720351,-500.0,0.00010543,2]
[352294531,1739030720406,-782.16,0.00010543,2]
[352294532,1739030720456,-500.0,0.00010543,2]
[352294533,1739030720512,-417.49732406,0.00010543,2]
[352294534,1739030720566,-500.0,0.00010543,2]
[352294535,1739030720625,-747.24,0.00010543,2]
[352294536,1739030720685,-674.19,0.00010543,2]
[352294537,1739030720739,-741.83,0.00010543,2]
[352294538,1739030720796,-500.0,0.00010543,2]
[352294539,1739030720850,-1399.18,0.00010543,2]
[352294540,1739030720906,-1111.43,0.00010543,2]
[352294541,1739030720960,-500.0,0.00010543,2]
[352294542,1739030721015,-500.0,0.00010543,2]
[352294543,1739030721067,-500.0,0.00010543,2]
[352294544,1739030721123,-500.0,0.00010543,2]
[352294545,1739030721178,-725.89,0.00010543,2]
[352294546,1739030721232,-500.0,0.00010543,2]
[352294547,1739030721289,-940.22,0.00010544,2]
[352294548,1739030721349,-4259.06,0.00010544,2]
[352294549,1739030721403,-1683.47,0.00010544,2]
[352294550,1739030721455,-1458.26,0.00010544,2]
[352294551,1739030721511,-1970.13,0.00010544,2]
[352294552,1739030721567,-1067.67,0.00010544,2]
[352294553,1739030721624,-2722.91,0.00010544,2]
[352294554,1739030721686,-1819.22,0.00010544,2]
[352294555,1739030721751,-616.17,0.00010544,2]
[352294556,1739030721814,-1867.62,0.00010544,2]
[352294557,1739030721873,-1550.42,0.00010544,2]
[352294558,1739030721931,-1243.7,0.00010544,2]
[352294559,1739030721990,-1725.38,0.00010544,2]
[352294560,1739030722045,-1462.59,0.00010544,2]
[352294561,1739030722101,-500.0,0.00010544,2]
[352294562,1739030722159,-500.0,0.00010544,2]
[352294563,1739030722216,-1712.74,0.00010544,2]
[352294564,1739030722275,-928.74,0.00010544,2]
[352294565,1739030722330,-953.74,0.00010544,2]
[352294566,1739030722385,-1838.29,0.00010544,2]
[352294567,1739030722442,-948.04,0.00010544,2]
[352294568,1739030722497,-1023.28,0.00010544,2]
[352294569,1739030722557,-863.45,0.00010544,2]
[352294570,1739030722612,-780.01,0.00010544,2]
[352294571,1739030722670,-1101.29,0.00010544,2]
[352294572,1739030722724,-500.0,0.00010544,2]
[352294573,1739030722778,-694.19,0.00010544,2]
[352294574,1739030722834,-1032.58,0.00010544,2]
[352294575,1739030722885,-1152.23,0.00010544,2]
[352294576,1739030722940,-1881.58,0.00010544,2]
[352294577,1739030722991,-1070.13,0.00010544,2]
[352294578,1739030723049,-868.23,0.00010544,2]
[352294579,1739030723107,-1209.95,0.00010544,2]
[352294580,1739030723165,-500.0,0.00010544,2]
[352294581,1739030723218,-1059.32,0.00010544,2]
[352294582,1739030723272,-2263.5,0.00010544,2]
[352294583,1739030723325,-610.05,0.00010544,2]
[352294584,1739030723379,-564.11,0.00010544,2]
[352294585,1739030723432,-1327.45,0.00010544,2]
[352294586,1739030723484,-1253.82,0.00010544,2]
[352294587,1739030723539,-1787.14,0.00010544,2]
[352294588,1739030723593,-2120.14,0.00010544,2]
[352294589,1739030723651,-842.51,0.00010545,2]
[352294590,1739030723705,-500.0,0.00010545,2]
[352294591,1739030723761,-500.0,0.00010545,2]
[352294592,1739030723815,-500.0,0.00010545,2]
[352294593,1739030723872,-500.0,0.00010545,2]
[352294594,1739030723926,-500.0,0.00010545,2]
[352294595,1739030723978,-500.0,0.00010545,2]
[352294596,1739030724032,-500.0,0.00010545,2]
[352294597,1739030724085,-523.93,0.00010545,2]
[352294598,1739030724140,-838.57,0.00010545,2]
[352294599,1739030724192,-562.8,0.00010545,2]
[352294600,1739030724249,-500.0,0.00010545,2]
[352294601,1739030724302,-500.0,0.00010545,2]
[352294602,1739030724531,-500.0,0.00010545,2]
[352294603,1739030724596,-500.0,0.00010545,2]
[352294604,1739030724649,-583.94,0.00010545,2]
[352294605,1739030724703,-722.86,0.00010545,2]
[352294606,1739030724756,-686.51,0.00010545,2]
[352294607,1739030724814,-500.0,0.00010545,2]
[352294608,1739030724867,-631.871584,0.00010545,2]
[352294609,1739030724921,-500.0,0.00010545,2]
[352294610,1739030724972,-509.52,0.00010545,2]
[352294611,1739030725024,-500.0,0.00010545,2]
[352294612,1739030725076,-500.0,0.00010545,2]
[352294613,1739030725129,-692.06,0.00010545,2]
[352294614,1739030725181,-500.0,0.00010545,2]
[352294615,1739030725230,-541.71,0.00010545,2]
[352294616,1739030725281,-500.0,0.00010545,2]
[352294617,1739030725329,-746.36,0.00010545,2]
[352294618,1739030725379,-599.48,0.00010545,2]
[352294619,1739030725426,-500.0,0.00010545,2]
[352294620,1739030725478,-753.64,0.00010545,2]
[352294621,1739030725526,-500.0,0.00010545,2]
[352294622,1739030725576,-692.88,0.00010545,2]
[352294623,1739030725628,-694.63,0.00010545,2]
[352294624,1739030725680,-563.79,0.00010545,2]
[352294625,1739030725730,-500.0,0.00010545,2]
[352294626,1739030725781,-500.0,0.00010545,2]
[352294627,1739030725829,-500.0,0.00010545,2]
[352294628,1739030725882,-500.0,0.00010545,2]
[352294629,1739030725931,-1096.01,0.00010545,2]
[352294630,1739030725983,-505.0,0.00010545,2]
[352294631,1739030726034,-168.84918263,0.00010545,2]
[352294632,1739030726087,-500.0,0.00010545,2]
[352294633,1739030726136,-500.0,0.00010545,2]
[352294634,1739030726190,-230.46237171,0.00010545,2]
[352294635,1739030726239,-500.0,0.00010545,2]
[352294636,1739030726294,-500.0,0.00010545,2]
[352294637,1739030726348,-500.0,0.00010545,2]
[352294638,1739030726402,-500.0,0.00010545,2]
[352294639,1739030726454,-1040.0,0.00010545,2]
[352294640,1739030726507,-500.0,0.00010545,2]
[352294641,1739030726557,-804.63,0.00010545,2]
[352294642,1739030726611,-828.55,0.00010545,2]
[352294643,1739030726662,-500.0,0.00010545,2]
[352294644,1739030726723,-500.0,0.00010545,2]
[352294645,1739030726775,-500.0,0.00010545,2]
[352294646,1739030726830,-500.0,0.00010545,2]
[352294647,1739030726882,-500.0,0.00010545,2]
[352294648,1739030726937,-500.0,0.00010545,2]
[352294649,1739030726987,-500.0,0.00010545,2]
[352294650,1739030727041,-500.0,0.00010545,2]
[352294651,1739030727096,-500.0,0.00010545,2]
[352294652,1739030727155,-500.0,0.00010545,2]
[352294653,1739030727210,-778.32,0.00010545,2]
[352294654,1739030727265,-500.0,0.00010545,2]
[352294655,1739030727322,-500.0,0.00010545,2]
[352294656,1739030727380,-500.0,0.00010545,2]
[352294657,1739030727432,-847.29,0.00010545,2]
[352294658,1739030727489,-500.0,0.00010545,2]
[352294659,1739030727542,-500.0,0.00010545,2]
[352294660,1739030727597,-500.0,0.00010545,2]
[352294661,1739030727648,-223.72414137,0.00010545,2]
[352294662,1739030727702,-768.92,0.00010545,2]
[352294663,1739030727753,-556.69,0.00010545,2]
[352294664,1739030727809,-5847.25,0.00010545,2]
[352294665,1739030727861,-453.27999488,0.00010545,2]
[352294666,1739030727915,-588.19,0.00010545,2]
[352294667,1739030727966,-795.93,0.00010545,2]
[352294668,1739030728018,-1153.61,0.00010545,2]
[352294669,1739030728068,-1203.38,0.00010545,2]
[352294670,1739030728122,-526.0,0.00010545,2]
[352294671,1739030728174,-1061.72,0.00010545,2]
[352294672,1739030728230,-500.0,0.00010545,2]
[352294673,1739030728283,-500.0,0.00010545,2]
[352294674,1739030728338,-500.0,0.00010545,2]
[352294675,1739030728391,-500.0,0.00010545,2]
[352294676,1739030728448,-500.0,0.00010545,2]
[352294677,1739030728506,-895.87,0.00010545,2]
[352294678,1739030728566,-503.13,0.00010545,2]
[352294679,1739030728623,-500.0,0.00010545,2]
[352294680,1739030728680,-500.0,0.00010545,2]
[352294681,1739030728732,-500.0,0.00010545,2]
[352294682,1739030728787,-788.36,0.00010545,2]
[352294683,1739030728841,-500.0,0.00010545,2]
[352294684,1739030728893,-500.0,0.00010545,2]
[352294685,1739030728948,-2386.43,0.00010545,2]
[352294686,1739030728996,-500.0,0.00010545,2]
[352294687,1739030729051,-1921.1,0.00010545,2]
[352294688,1739030729099,-500.0,0.00010545,2]
[352294689,1739030729152,-500.0,0.00010545,2]
[352294690,1739030729201,-500.0,0.00010545,2]
[352294691,1739030729251,-665.38,0.00010545,2]
[352294692,1739030729302,-500.0,0.00010545,2]
[352294693,1739030729354,-1335.82,0.00010545,2]
[352294694,1739030729407,-914.9,0.00010545,2]